bitfinex/quotes_ETHUSD_20230111
["timestamp","ask_amount","ask_price","bid_price","bid_amount"]
[1673480549988,1.0581058,1390.5,1390.1,10.87631653]
[1673480550200,1.0601058,1390.5,1390.1,10.87431653]
[1673480550442,0.5581058,1390.5,1390.1,10.87631653]
[1673480550636,0.5581058,1390.5,1390.1,25.26375653]
[1673480551057,0.5581058,1390.5,1390.1,10.87631653]
[1673480551472,0.5581058,1390.5,1390.1,18.07003653]
[1673480551930,0.5581058,1390.5,1390.1,10.87631653]
[1673480552313,9.72221127,1390.5,1390.1,0.066]
[1673480552561,24.17151127,1390.5,1389.8,7.93338]
[1673480552789,3.5,1390.4,1389.9,4.35513653]
[1673480552929,7.73265,1390.3,1389.8,0.066]
[1673480553144,7.73265,1390.3,1389.6,2.1838]
[1673480553145,3.5,1390.2,1389.6,2.1838]
[1673480553354,17.88668,1390.2,1389.7,3.61663653]
[1673480553577,0.066,1390.2,1389.9,3.61663653]
[1673480553812,3.1001058,1390.5,1389.9,11.54972653]
[1673480554017,9.7258558,1390.5,1390.0,3.61663653]
[1673480554209,16.9836058,1390.5,1390.0,3.61663653]
[1673480554647,16.9836058,1390.5,1390.1,3.61663653]
[1673480554648,0.6241058,1390.5,1390.1,3.61663653]
[1673480554976,14.9414658,1390.5,1390.1,3.61663653]
[1673480555190,7.8157858,1390.5,1390.1,3.61663653]
[1673480555560,18.06599653,1390.5,1390.0,0.2814]
[1673480555771,31.28907345,1390.5,1389.8,0.7385]
[1673480556024,9.71403345,1390.5,1389.8,15.12899]
[1673480556235,0.5397,1390.4,1389.9,4.35513653]
[1673480556449,7.19269,1390.3,1389.9,4.58083653]
[1673480556663,14.45148,1390.3,1389.9,0.7385]
[1673480557188,3.5,1390.1,1389.6,0.066]
[1673480557405,0.066,1390.2,1389.9,3.61663653]
[1673480557711,0.2724924,1390.3,1390.0,3.86053653]
[1673480557924,0.2724924,1390.3,1390.1,10.81000653]
[1673480558077,0.2724924,1390.3,1390.1,10.87600653]
[1673480558458,0.2724924,1390.3,1390.1,11.61450653]
[1673480558755,0.2724924,1390.3,1390.1,4.42113653]
[1673480558969,0.2724924,1390.3,1390.1,4.35513653]
[1673480559343,7.4654224,1390.3,1390.1,4.35513653]
[1673480559675,0.3384924,1390.3,1390.1,4.35513653]
[1673480559865,0.2724924,1390.3,1390.1,4.35513653]
[1673480560074,0.2724924,1390.3,1390.1,3.61663653]
[1673480560317,0.2724924,1390.3,1390.2,10.80983653]
[1673480560602,0.2724924,1390.3,1390.2,18.80753653]
[1673480560983,0.2724924,1390.3,1390.2,0.066]
[1673480561162,0.2724924,1390.3,1390.0,0.7385]
[1673480561550,0.2724924,1390.3,1390.1,0.7385]
[1673480561798,3.5,1390.2,1389.9,14.0]
[1673480562012,3.5,1390.2,1389.9,24.87712653]
[1673480562190,3.5,1390.2,1390.0,0.7385]
[1673480562394,3.5,1390.2,1389.9,10.87712653]
[1673480562395,3.5,1390.2,1389.9,0.8045]
[1673480562620,17.88655,1390.2,1389.6,7.26221]
[1673480562882,16.28972032,1390.2,1389.7,3.82853653]
[1673480563056,17.95255,1390.2,1389.7,3.61663653]
[1673480563408,22.69327032,1390.2,1389.6,0.3215]
[1673480563720,7.19432,1390.0,1389.4,7.52374]
[1673480563906,7.19432,1390.0,1389.6,3.61663653]
[1673480563907,0.6058,1390.0,1389.6,3.61663653]
[1673480564100,14.92838,1390.0,1389.5,0.066]
[1673480564296,12.79076032,1390.0,1389.5,0.7385]
[1673480564506,8.30029,1390.0,1389.5,11.55182653]
[1673480564765,1.1058,1390.0,1389.5,11.61782653]
[1673480564945,15.42828,1390.0,1389.5,4.42113653]
[1673480565148,14.95448,1390.0,1389.5,4.35513653]
[1673480565363,0.566,1390.0,1389.5,11.55186653]
[1673480565573,7.69439,1390.0,1389.5,3.68263653]
[1673480565780,0.066,1390.0,1389.6,4.35513653]
[1673480565993,0.8871924,1390.3,1389.7,10.81206653]
[1673480565994,2.3644924,1390.3,1389.7,10.81206653]
[1673480566217,2.3644924,1390.3,1389.8,3.61663653]
[1673480566435,2.3644924,1390.3,1389.9,7.19453]
[1673480566675,0.2724924,1390.3,1390.0,3.61663653]
[1673480566888,0.2724924,1390.3,1390.1,11.04025653]
[1673480567102,0.2724924,1390.3,1390.2,3.61663653]
[1673480567588,0.2724924,1390.3,1390.2,10.80983653]
[1673480567806,0.2724924,1390.3,1390.2,18.29903653]
[1673480568519,0.2724924,1390.3,1390.2,3.91263653]
[1673480568732,0.2724924,1390.3,1390.1,0.066]
[1673480568942,0.2724924,1390.3,1390.1,10.81019653]
[1673480569187,0.2724924,1390.3,1390.1,18.06991653]
[1673480569623,0.2724924,1390.3,1390.1,3.68263653]
[1673480569781,0.2724924,1390.3,1390.1,3.61663653]
[1673480570339,0.2724924,1390.3,1390.0,0.066]
[1673480570542,0.2724924,1390.3,1389.7,2.8585]
[1673480570758,7.4651824,1390.3,1389.8,11.55004653]
[1673480570931,0.3384924,1390.3,1389.8,18.80922653]
[1673480571146,0.2724924,1390.3,1389.9,3.61663653]
[1673480571398,0.2724924,1390.3,1389.9,18.00551653]
[1673480571576,0.2724924,1390.3,1389.9,11.61578653]
[1673480571788,7.4652324,1390.3,1389.9,0.066]
[1673480572134,21.9166624,1390.3,1389.8,0.066]
[1673480572346,21.9166624,1390.3,1389.7,0.2777]
[1673480572514,14.7239224,1390.3,1389.8,0.7385]
[1673480572724,14.7239224,1390.3,1389.8,11.55003653]
[1673480572725,0.3384924,1390.3,1389.8,11.55003653]
[1673480572950,0.3384924,1390.3,1389.8,3.68263653]
[1673480572951,21.8507524,1390.3,1389.8,3.68263653]
[1673480573207,21.9167524,1390.3,1389.8,3.61663653]
[1673480573525,14.88674,1390.2,1389.8,3.61663653]
[1673480573700,0.566,1390.2,1389.9,7.19471]
[1673480573916,14.88656,1390.2,1389.9,0.066]
[1673480574175,14.95256,1390.2,1389.7,21.65246]
[1673480574323,14.95256,1390.2,1389.7,18.07358653]
[1673480574324,15.49236,1390.2,1389.7,18.07358653]
[1673480574794,22.68572,1390.2,1389.8,0.7385]
[1673480574976,34.30818209,1390.2,1389.7,0.066]
[1673480575185,21.58376,1390.0,1389.4,7.41875]
[1673480575402,7.80026,1390.0,1389.5,14.39363]
[1673480575582,14.4547,1390.0,1389.5,7.2628]
[1673480575789,14.4547,1390.0,1389.5,0.066]
[1673480576038,4.99072032,1389.9,1389.4,0.066]
[1673480576221,8.60735685,1389.9,1389.3,0.77860449]
[1673480576437,14.93058,1389.8,1389.3,0.77860449]
[1673480576656,14.99658,1389.8,1389.3,0.77860449]
[1673480576886,14.99658,1389.8,1389.3,0.04010449]
[1673480577107,19.98730032,1389.8,1389.3,0.04010449]
[1673480577421,0.066,1389.8,1389.5,14.39358]
[1673480577626,2.227,1390.1,1389.6,18.00923653]
[1673480577805,2.227,1390.1,1389.6,0.01]
[1673480578013,14.38981,1389.9,1389.5,0.066]
[1673480578255,21.65057,1389.9,1389.3,7.55520449]
[1673480578421,9.14725685,1389.8,1389.3,0.10610449]
[1673480578635,9.14725685,1389.8,1389.3,0.04010449]
[1673480578636,15.79513089,1389.7,1389.3,0.04010449]
[1673480578953,14.85327653,1389.6,1389.3,0.04010449]
[1673480579176,11.30264,1389.6,1389.3,0.04010449]
[1673480579394,11.30238,1389.6,1389.3,0.04010449]
[1673480579609,27.10377574,1389.6,1389.3,0.04010449]
[1673480579996,27.10471217,1389.6,1389.3,0.04010449]
[1673480580362,7.72263653,1389.6,1389.3,0.04010449]
[1673480580567,4.106,1389.6,1389.3,0.04010449]
[1673480580732,0.54,1389.6,1389.3,0.04010449]
[1673480580946,0.066,1389.9,1389.6,0.54]
[1673480581154,2.242,1390.0,1389.6,0.54]
[1673480581370,7.19425,1390.0,1389.6,0.54]
[1673480581712,7.26025,1390.0,1389.6,0.54]
[1673480581930,3.5,1389.9,1389.4,4.42113653]
[1673480582100,14.85137653,1389.9,1389.4,0.7885]
[1673480582312,14.91737653,1389.9,1389.4,0.7385]
[1673480582847,22.11221653,1389.9,1389.4,0.7385]
[1673480583284,11.30074,1389.9,1389.4,0.7385]
[1673480583492,11.30074,1389.9,1389.3,14.50166449]
[1673480583493,27.08343205,1389.9,1389.3,0.84460449]
[1673480583704,23.46531371,1389.9,1389.4,4.35513653]
[1673480583896,18.4955,1389.9,1389.3,8.04246449]
[1673480584105,0.6059,1389.9,1389.5,4.35513653]
[1673480584314,0.2724924,1390.3,1389.8,3.61663653]
[1673480584527,0.2724924,1390.3,1390.0,21.58242]
[1673480584744,0.2724924,1390.3,1390.1,3.61663653]
[1673480584958,0.2724924,1390.3,1390.2,3.61663653]
[1673480585172,0.2724924,1390.3,1390.2,11.03983653]
[1673480585402,0.2724924,1390.3,1390.2,11.10583653]
[1673480586343,0.2724924,1390.3,1390.2,0.066]
[1673480586520,0.2724924,1390.3,1390.0,14.45438]
[1673480586717,0.2724924,1390.3,1390.1,7.19356]
[1673480586927,0.2724924,1390.3,1390.1,0.066]
[1673480587145,0.2724924,1390.3,1390.0,0.066]
[1673480587388,11.8136624,1390.3,1389.7,7.19573]
[1673480587573,0.5398,1390.2,1389.7,18.07409653]
[1673480588006,4.0398,1390.2,1389.7,18.07409653]
[1673480588188,4.348,1390.1,1389.7,0.066]
[1673480588400,16.51312552,1390.1,1389.4,7.80335]
[1673480588610,19.36016552,1390.0,1389.4,0.6061]
[1673480588861,3.5,1389.8,1389.3,8.04200449]
[1673480589029,3.5,1389.8,1389.3,0.10610449]
[1673480589030,8.47121552,1389.8,1389.3,0.10610449]
[1673480589236,3.566,1389.8,1389.3,10.85458102]
[1673480589481,4.414,1389.9,1389.3,18.11844102]
[1673480589661,0.066,1390.0,1389.4,3.61663653]
[1673480589872,2.164,1390.2,1389.5,21.59016]
[1673480590125,2.164,1390.2,1389.7,21.58641]
[1673480590291,2.7038,1390.2,1389.7,21.65241]
[1673480590500,2.164,1390.2,1389.7,0.066]
[1673480590756,2.164,1390.2,1389.6,8.47478]
[1673480590919,0.5398,1390.1,1389.6,8.00078]
[1673480591126,0.5398,1390.1,1389.6,7.26228]
[1673480591387,14.92729,1390.1,1389.7,0.7385]
[1673480591625,0.6058,1390.1,1389.7,0.7385]
[1673480591911,2.7038,1390.2,1389.8,11.04172653]
[1673480592121,9.89702,1390.2,1389.8,0.066]
[1673480592352,9.89702,1390.2,1389.6,7.26198]
[1673480592353,9.96302,1390.2,1389.6,7.26198]
[1673480592498,9.96302,1390.2,1389.7,11.04210653]
[1673480592499,2.7698,1390.2,1389.7,11.04210653]
[1673480592864,17.09036,1390.2,1389.7,0.066]
[1673480593088,12.93585205,1390.1,1389.5,0.8045]
[1673480593389,19.89840506,1390.0,1389.4,7.26289]
[1673480593595,19.96255556,1390.0,1389.4,3.68263653]
[1673480593793,0.066,1390.0,1389.7,3.61663653]
[1673480593984,9.35862,1390.2,1389.7,3.61663653]
[1673480594194,7.19372,1390.1,1389.6,0.066]
[1673480594392,7.25972,1390.1,1389.5,7.26259]
[1673480594600,0.5398,1390.0,1389.5,3.68263653]
[1673480594870,0.8517698,1391.0,1390.3,32.38739653]
[1673480595072,0.03,1390.4,1390.3,21.64407]
[1673480595231,2.226,1390.8,1390.3,21.64407]
[1673480595442,0.066,1390.9,1390.4,14.23]
[1673480595649,0.8517698,1391.0,1390.7,21.57186]
[1673480595862,0.8517698,1391.0,1390.9,14.37916]
[1673480596102,0.8517698,1391.0,1390.9,0.066]
[1673480596294,5.1997698,1391.0,1390.6,0.7385]
[1673480596509,0.9177698,1391.0,1390.6,10.80764653]
[1673480596798,0.9177698,1391.0,1390.8,7.1901]
[1673480596799,0.8517698,1391.0,1390.8,7.1901]
[1673480596991,0.8517698,1391.0,1390.8,7.2561]
[1673480597206,0.8517698,1391.0,1390.8,0.066]
[1673480597403,0.8537698,1391.0,1390.7,10.87114653]
[1673480597605,0.8517698,1391.0,1390.7,0.066]
[1673480597821,0.8517698,1391.0,1390.7,7.19037]
[1673480598029,0.8517698,1391.0,1390.7,10.87300653]
[1673480598259,0.8517698,1391.0,1390.7,3.68263653]
[1673480598592,0.8517698,1391.0,1390.7,3.61663653]
[1673480598968,0.8517698,1391.0,1390.6,0.8045]
[1673480598969,15.2304198,1391.0,1390.6,0.8045]
[1673480599182,15.2964198,1391.0,1390.5,0.7385]
[1673480599388,15.2964198,1391.0,1390.5,3.61663653]
[1673480599611,15.2959598,1391.0,1390.5,3.61663653]
[1673480599816,8.1068398,1391.0,1390.4,7.79779]
[1673480600038,8.1068398,1391.0,1390.4,3.68263653]
[1673480600240,0.9177698,1391.0,1390.5,0.7385]
[1673480600432,0.8517698,1391.0,1390.6,4.35513653]
[1673480600642,0.8517698,1391.0,1390.7,17.99767653]
[1673480600898,0.8517698,1391.0,1390.8,3.61663653]
[1673480601305,0.8517698,1391.0,1390.8,10.80671653]
[1673480601485,0.8517698,1391.0,1390.8,3.68263653]
[1673480601844,0.8517698,1391.0,1390.7,0.066]
[1673480602058,0.8517698,1391.0,1390.6,17.87902]
[1673480602276,8.0408498,1391.0,1390.6,4.96073653]
[1673480602461,8.1068498,1391.0,1390.6,4.35513653]
[1673480602797,15.2959198,1391.0,1390.6,0.7385]
[1673480603111,8.1068398,1391.0,1390.6,0.7385]
[1673480603298,0.9177698,1391.0,1390.6,0.7385]
[1673480603530,15.2299198,1391.0,1390.6,0.7385]
[1673480603690,21.5703,1390.8,1390.6,0.7385]
[1673480603900,21.5703,1390.8,1390.2,0.6058]
[1673480603901,26.60657488,1390.8,1390.2,0.6058]
[1673480604110,3.5,1390.6,1390.2,4.15643653]
[1673480604372,7.19176,1390.5,1390.2,0.5398]
[1673480604587,7.25776,1390.5,1390.2,0.5398]
[1673480604830,7.25776,1390.5,1390.0,8.4725]
[1673480605052,7.25776,1390.5,1390.0,19.34937653]
[1673480605368,0.066,1390.5,1390.0,19.34937653]
[1673480605523,7.25741,1390.6,1390.0,18.80957653]
[1673480605733,14.44888,1390.6,1390.0,4.42113653]
[1673480605976,26.60633865,1390.6,1390.0,4.35513653]
[1673480606187,30.22297518,1390.6,1390.0,7.9325]
[1673480606473,30.22297518,1390.6,1390.1,0.7385]
[1673480606474,4.333,1390.5,1390.1,0.7385]
[1673480606820,4.348,1390.3,1389.8,0.066]
[1673480607011,21.58139,1390.1,1389.6,0.54]
[1673480607207,0.5398,1390.0,1389.5,0.066]
[1673480607418,7.09482,1389.9,1389.4,0.5401]
[1673480607645,7.16082,1389.9,1389.4,0.5401]
[1673480607843,7.16082,1389.9,1389.4,1.2786]
[1673480608069,7.16082,1389.9,1389.3,7.30361449]
[1673480608070,7.16082,1389.9,1389.3,7.84376449]
[1673480608253,7.16082,1389.9,1389.4,0.02199102]
[1673480608254,19.30961748,1389.9,1389.4,0.02199102]
[1673480608467,19.30914054,1389.9,1389.4,0.02199102]
[1673480608710,21.58767,1389.7,1389.4,0.02199102]
[1673480608904,26.60960855,1389.7,1389.4,0.02199102]
[1673480609117,27.14960855,1389.7,1389.4,0.02199102]
[1673480609654,0.606,1389.7,1389.4,0.01929325]
[1673480609864,0.54,1389.7,1389.4,7.21664325]
[1673480610074,0.066,1389.9,1389.5,3.61663653]
[1673480610288,0.5398,1390.1,1389.7,0.54]
[1673480610531,0.5398,1390.1,1389.7,1.2785]
[1673480610676,0.5398,1390.1,1389.7,8.47681916]
[1673480610886,0.5398,1390.1,1389.7,1.34705916]
[1673480611094,3.50255916,1390.0,1389.6,0.066]
[1673480611304,1.842,1389.8,1389.6,0.7385]
[1673480611520,1.844,1389.8,1389.6,0.7385]
[1673480611740,1.842,1389.8,1389.6,25.94402653]
[1673480611990,1.842,1389.8,1389.6,26.01002653]
[1673480612192,1.842,1389.8,1389.7,4.35513653]
[1673480612507,0.066,1390.2,1389.8,8.94847245]
[1673480612724,0.066,1390.2,1389.8,19.82437898]
[1673480612725,0.002,1390.2,1389.8,19.82437898]
[1673480612895,2.7897,1390.4,1390.1,15.12594]
[1673480612896,0.5397,1390.4,1390.1,15.12594]
[1673480613111,0.5397,1390.4,1390.1,0.8045]
[1673480613304,0.526,1390.3,1390.1,0.7385]
[1673480613759,0.528,1390.3,1390.1,0.7385]
[1673480613945,0.526,1390.3,1390.0,0.7385]
[1673480614268,0.00255916,1390.2,1390.0,0.7385]
[1673480614480,0.00255916,1390.2,1389.8,1.01502245]
[1673480614786,0.592,1390.3,1389.9,18.00604653]
[1673480615000,0.526,1390.3,1389.9,0.066]
[1673480615216,0.526,1390.3,1389.8,8.75019245]
[1673480615217,1.0657,1390.3,1389.8,8.75019245]
[1673480615404,0.526,1390.3,1389.9,14.38941]
[1673480615621,0.526,1390.3,1390.0,0.7385]
[1673480615872,0.066,1390.5,1390.2,4.35513653]
[1673480616085,10.2932998,1391.0,1390.4,0.7385]
[1673480616262,10.2932998,1391.0,1390.4,7.93066]
[1673480616263,17.4827598,1391.0,1390.4,7.93066]
[1673480616468,0.5395,1390.9,1390.4,18.80546653]
[1673480616684,0.8517698,1391.0,1390.6,0.7385]
[1673480616905,0.8517698,1391.0,1390.6,18.73698653]
[1673480617120,0.8517698,1391.0,1390.7,4.35513653]
[1673480617450,0.8517698,1391.0,1390.7,11.54565653]
[1673480617641,0.8517698,1391.0,1390.7,11.61165653]
[1673480618051,4.46840633,1391.0,1390.7,0.066]
[1673480618396,3.61663653,1390.9,1390.5,0.7385]
[1673480618609,3.5,1390.8,1390.5,0.7385]
[1673480618769,3.50255916,1390.8,1390.5,0.7385]
[1673480618979,10.69273916,1390.8,1390.5,0.7385]
[1673480619389,10.69273916,1390.8,1390.5,3.61663653]
[1673480619390,0.06855916,1390.8,1390.5,3.61663653]
[1673480619559,0.01655916,1390.8,1390.6,0.7385]
[1673480619865,0.00255916,1390.8,1390.6,0.7385]
[1673480620029,0.00255916,1390.8,1390.4,0.066]
[1673480620233,0.00255916,1390.8,1390.3,7.1925]
[1673480620444,0.00255916,1390.8,1390.4,7.93067]
[1673480620709,0.00255916,1390.8,1390.4,0.8045]
[1673480620923,0.00255916,1390.8,1390.4,0.7385]
[1673480621289,0.00255916,1390.8,1390.4,7.93036]
[1673480621500,0.00255916,1390.8,1390.4,0.8045]
[1673480621710,0.00255916,1390.8,1390.4,15.12263]
[1673480621930,0.00255916,1390.8,1390.4,15.18863]
[1673480622174,0.00255916,1390.8,1390.4,7.99646]
[1673480622765,7.19292916,1390.8,1390.4,0.066]
[1673480623025,25.25603569,1390.8,1390.3,0.7385]
[1673480623209,12.87353447,1390.7,1390.1,0.1108]
[1673480623423,7.81,1390.5,1389.9,0.1108]
[1673480623600,14.38604,1390.3,1389.8,1.19182245]
[1673480623810,14.38604,1390.3,1389.8,1.12582245]
[1673480623811,18.28964399,1390.3,1389.8,1.12582245]
[1673480624015,13.38074605,1390.3,1389.8,1.12582245]
[1673480624279,13.38074605,1390.3,1389.9,0.7385]
[1673480624680,6.18764605,1390.3,1389.9,0.7385]
[1673480624893,9.80428258,1390.3,1389.9,0.7385]
[1673480625075,7.11663653,1390.2,1389.8,1.14202245]
[1673480625284,7.19383,1390.1,1389.8,1.01502245]
[1673480625639,0.066,1390.1,1389.8,1.73442245]
[1673480625848,3.61663653,1390.1,1389.8,1.73442245]
[1673480626066,10.75957,1390.2,1389.8,1.73442245]
[1673480626225,10.75939,1390.2,1389.8,1.73442245]
[1673480626436,17.95278,1390.2,1389.8,1.73442245]
[1673480626666,10.75928,1390.2,1389.8,8.92940245]
[1673480627010,10.76183916,1390.2,1389.8,8.99540245]
[1673480627180,10.76183916,1390.2,1389.8,1.80042245]
[1673480627386,25.14831916,1390.2,1389.8,1.73442245]
[1673480627596,0.06855916,1390.2,1389.8,16.12485245]
[1673480627842,0.5397,1390.3,1389.8,19.80748898]
[1673480628049,6.538,1390.5,1389.9,0.7194]
[1673480628050,7.79726,1390.5,1389.9,0.7194]
[1673480628226,11.41389653,1390.5,1390.1,0.7194]
[1673480628440,3.61663653,1390.4,1390.1,0.7194]
[1673480628974,10.80888653,1390.4,1390.1,0.7194]
[1673480629183,10.87488653,1390.4,1390.0,0.7194]
[1673480629430,18.06705653,1390.4,1390.0,0.7194]
[1673480629601,18.06697653,1390.4,1390.0,0.7194]
[1673480629951,7.73252,1390.3,1390.0,0.7194]
[1673480630162,7.73252,1390.3,1389.8,1.08102245]
[1673480630163,14.38766,1390.1,1389.8,1.08102245]
[1673480630380,8.9063275,1390.0,1389.8,1.01502245]
[1673480630539,16.1667375,1390.0,1389.8,1.01502245]
[1673480631203,16.1667375,1390.0,1389.8,2.45e-06]
[1673480631413,18.54605653,1389.9,1389.8,2.45e-06]
[1673480631625,18.07471569,1389.9,1389.8,2.45e-06]
[1673480631836,22.93307245,1389.9,1389.8,2.45e-06]
[1673480632257,26.47297245,1389.9,1389.8,2.45e-06]
[1673480632799,0.60845916,1389.9,1389.8,2.45e-06]
[1673480632969,7.73721916,1389.9,1389.8,2.45e-06]
[1673480633180,7.80321916,1389.9,1389.8,2.45e-06]
[1673480633490,0.60845916,1389.9,1389.8,2.45e-06]
[1673480633724,0.54245916,1389.9,1389.8,2.45e-06]
[1673480634112,25.74337569,1389.9,1389.8,2.45e-06]
[1673480634321,25.80937569,1389.9,1389.8,2.45e-06]
[1673480634565,11.41985569,1389.9,1389.8,2.45e-06]
[1673480635002,25.80937569,1389.9,1389.8,2.45e-06]
[1673480635422,30.87087709,1389.9,1389.8,2.45e-06]
[1673480635584,38.72923385,1389.9,1389.3,0.04010449]
[1673480635798,7.96463653,1389.7,1389.3,0.04010449]
[1673480636046,37.80063329,1389.6,1389.3,0.04010449]
[1673480636227,8.47499329,1389.5,1389.3,0.04010449]
[1673480636435,8.47499329,1389.5,1389.2,0.0004581]
[1673480636436,3.5,1389.3,1389.2,0.0004581]
[1673480636647,3.5,1389.2,1389.0,0.00026057]
[1673480636957,1.18170585,1389.2,1389.0,0.00026057]
[1673480637379,0.64150585,1389.2,1389.0,0.00026057]
[1673480637571,3.61663653,1389.1,1389.0,0.00026057]
[1673480637787,3.5,1389.0,1388.9,0.7608581]
[1673480638047,3.30523683,1389.0,1388.9,0.0414581]
[1673480638288,21.20407683,1389.0,1388.9,0.0414581]
[1673480638467,21.27007683,1389.0,1388.9,0.0414581]
[1673480638678,21.81027683,1389.0,1388.9,0.0414581]
[1673480638994,0.066,1389.0,1388.9,0.0414581]
[1673480639182,0.5401,1389.3,1388.9,15.1607381]
[1673480639394,0.606,1389.5,1388.9,8.0267981]
[1673480639573,0.00269777,1389.2,1388.9,8.0267981]
[1673480639784,0.00269777,1389.2,1388.9,0.8268581]
[1673480640034,0.00269777,1389.2,1388.9,15.1605781]
[1673480640230,0.00269777,1389.2,1389.0,0.7194]
[1673480640836,0.54289777,1389.2,1389.0,0.7194]
[1673480641182,0.54289777,1389.2,1388.9,0.0414581]
[1673480641183,3.61919569,1389.1,1388.9,0.0414581]
[1673480641402,10.81824569,1389.1,1388.9,0.0414581]
[1673480641714,10.88424569,1389.1,1388.9,0.0414581]
[1673480641891,14.38424569,1389.1,1388.9,0.0414581]
[1673480642105,3.61663653,1389.0,1388.7,0.04026354]
[1673480642325,7.70049569,1388.9,1388.7,0.04026354]
[1673480642676,10.81709653,1388.8,1388.7,0.04026354]
[1673480642872,18.08355653,1388.8,1388.7,0.04026354]
[1673480643202,18.08355653,1388.8,1388.2,1.01001877]
[1673480643203,21.58355653,1388.8,1388.2,1.01001877]
[1673480643412,14.4032,1388.6,1388.3,0.7194]
[1673480643626,3.61663653,1388.5,1388.3,0.7194]
[1673480643784,19.32987836,1388.6,1388.2,0.89421877]
[1673480643785,18.02169653,1388.4,1388.2,0.89421877]
[1673480643993,3.61663653,1388.3,1388.2,0.89421877]
[1673480644256,0.066,1388.4,1388.2,0.89421877]
[1673480644418,2.8304,1388.6,1388.2,0.89421877]
[1673480644419,7.68677292,1388.6,1388.2,0.89421877]
[1673480644627,3.61663653,1388.5,1388.2,0.89421877]
[1673480645288,7.11663653,1388.5,1388.2,0.89421877]
[1673480645514,3.61663653,1388.4,1388.2,0.89421877]
[1673480645725,32.42883653,1388.3,1387.9,0.7194]
[1673480645939,12.16232197,1388.2,1387.9,0.7194]
[1673480646111,25.22890653,1388.1,1387.9,0.7194]
[1673480646327,7.11663653,1388.0,1387.6,0.1178]
[1673480646538,18.02699653,1387.9,1387.5,1.01246509]
[1673480646733,3.61919569,1387.8,1387.5,1.61406509]
[1673480647101,3.61663653,1387.7,1387.5,1.61406509]
[1673480647409,0.58336333,1387.8,1387.5,1.61406509]
[1673480647617,4.13399986,1387.8,1387.5,1.61406509]
[1673480647830,0.6067,1387.9,1387.5,1.61406509]
[1673480647988,0.066,1388.2,1388.1,3.20759738]
[1673480648366,0.06,1388.3,1388.1,3.20759738]
[1673480648367,3.0,1388.3,1388.1,3.20759738]
[1673480648568,3.61663653,1388.2,1388.1,3.20759738]
[1673480649081,3.61663653,1388.2,1388.1,10.41168738]
[1673480649300,3.61663653,1388.2,1388.1,3.27359738]
[1673480649510,3.61663653,1388.2,1388.1,3.20759738]
[1673480649723,18.02377653,1388.2,1388.1,3.20759738]
[1673480650041,0.06855916,1388.2,1388.1,3.20759738]
[1673480650217,3.61919569,1388.2,1388.1,3.20759738]
[1673480650437,0.066,1388.3,1388.1,3.20759738]
[1673480650768,0.066,1388.5,1388.2,0.7194]
[1673480650978,0.5403,1388.7,1388.2,7.92277]
[1673480651191,0.5403,1388.7,1388.2,15.19234]
[1673480651406,0.6063,1388.8,1388.3,3.61663653]
[1673480651560,1.3,1388.9,1388.5,7.20195]
[1673480651777,9.25749526,1388.9,1388.5,0.066]
[1673480652034,3.61663653,1388.8,1388.4,0.7194]
[1673480652190,7.11663653,1388.8,1388.4,0.7194]
[1673480652406,7.18263653,1388.8,1388.4,0.7194]
[1673480652836,7.20149,1388.6,1388.4,0.7194]
[1673480653048,14.31897653,1388.5,1388.1,4.48009738]
[1673480653259,30.74444281,1388.5,1388.1,3.92699738]
[1673480653827,3.61663653,1388.4,1388.1,3.92699738]
[1673480654060,3.5,1388.2,1388.1,3.92699738]
[1673480654194,10.81968653,1388.3,1388.1,3.20759738]
[1673480654195,16.82239833,1388.3,1388.1,3.20759738]
[1673480654409,18.0264743,1388.2,1388.1,3.20759738]
[1673480654670,18.0264743,1388.2,1387.9,0.066]
[1673480654671,3.5,1388.1,1387.9,0.066]
[1673480654863,15.70784653,1388.0,1387.5,0.89466509]
[1673480655049,4.363,1387.8,1387.5,0.89466509]
[1673480655256,18.02895653,1387.7,1387.5,1.61406509]
[1673480655601,0.066,1387.7,1387.5,16.02802509]
[1673480655815,2.31969777,1388.2,1387.8,0.11503973]
[1673480655816,0.5406,1388.1,1387.8,0.11503973]
[1673480656147,3.61663653,1388.1,1387.8,0.11503973]
[1673480656464,3.61663653,1388.0,1387.8,0.11503973]
[1673480656954,7.11663653,1387.9,1387.8,0.11503973]
[1673480657178,26.33672794,1387.9,1387.8,0.11503973]
[1673480657388,26.87742794,1387.9,1387.8,0.11503973]
[1673480657723,3.5,1387.8,1387.5,1.61406509]
[1673480657901,3.5,1387.6,1387.5,0.19695166]
[1673480658262,5.40990847,1387.9,1387.5,3.81358819]
[1673480658482,0.002,1387.7,1387.6,7.65743653]
[1673480658788,2.259,1388.0,1387.6,8.53288]
[1673480658948,0.002,1388.0,1387.7,7.83603653]
[1673480659162,1.3,1388.0,1387.9,14.41004]
[1673480659383,0.00269777,1388.2,1387.9,0.7854]
[1673480659703,1.3,1388.0,1387.8,0.6067]
[1673480659912,1.3,1388.0,1387.7,0.7194]
[1673480659913,3.5,1387.9,1387.7,0.7194]
[1673480660312,3.5,1387.9,1387.6,0.7194]
[1673480660587,15.68754653,1388.0,1387.6,22.33936]
[1673480660588,1.366,1388.0,1387.6,22.33936]
[1673480660755,1.366,1388.0,1387.6,22.40536]
[1673480660756,1.3,1388.0,1387.6,22.40536]
[1673480661100,11.31282777,1388.2,1388.1,2.92734667]
[1673480661263,17.9294643,1388.2,1388.1,2.92734667]
[1673480661676,25.1334543,1388.2,1388.1,2.92734667]
[1673480662098,29.4594543,1388.2,1388.1,2.92734667]
[1673480662369,4.93519777,1388.2,1388.1,2.92734667]
[1673480662674,0.00269777,1388.2,1388.1,2.92734667]
[1673480663497,0.00269777,1388.2,1388.1,17.33552667]
[1673480663703,20.32833023,1388.6,1388.1,10.91683667]
[1673480663897,7.80794,1388.6,1388.1,3.71274667]
[1673480664094,10.88417653,1388.6,1388.1,3.64674667]
[1673480664298,3.68263653,1388.6,1388.1,3.64674667]
[1673480664554,10.81824653,1388.6,1388.1,3.64674667]
[1673480664767,10.88424653,1388.6,1388.1,3.64674667]
[1673480664942,3.5,1388.5,1388.1,3.64674667]
[1673480665151,7.11663653,1388.5,1388.1,3.64674667]
[1673480665367,15.82307118,1388.5,1388.1,3.64674667]